fUSD/lending_fUSD_20250811
["ID","MTS","AMOUNT","RATE_DAILY","PERIOD"]
[378566444,1754913138269,-400.0,0.00018271,2]
[378566445,1754913138279,-405.91339523,0.00018271,2]
[378566446,1754913138289,-433.36,0.00018271,2]
[378566447,1754913138301,-775.91,0.00018271,2]
[378566448,1754913138311,-400.0,0.00018271,2]
[378566449,1754913138320,-20493.1044642,0.00018271,2]
[378566450,1754913138330,-3765.2893972,0.00018271,2]
[378566451,1754913138340,-1242.63,0.00018272,2]
[378566452,1754913138350,-203.04791849,0.00018273,2]
[378566453,1754913138360,-200.0,0.00018273,2]
[378566454,1754913138369,-500.0,0.00018273,2]
[378566455,1754913138378,-500.0,0.00018273,2]
[378566456,1754913138388,-420.3438479,0.00018273,2]
[378566457,1754913138397,-151.0,0.00018273,2]
[378566458,1754913138409,-151.0,0.00018273,2]
[378566459,1754913138418,-353.915417,0.00018273,2]
[378566460,1754913138428,-353.915408,0.00018273,2]
[378566461,1754913138438,-223.997593,0.00018273,2]
[378566462,1754913138448,-223.997593,0.00018273,2]
[378566463,1754913138457,-309.853147,0.00018273,2]
[378566464,1754913138468,-309.853147,0.00018273,2]
[378566465,1754913138477,-1271.592475,0.00018273,2]
[378566466,1754913138487,-1271.592475,0.00018273,2]
[378566467,1754913138496,-218.917503,0.00018284,2]
[378566468,1754913138506,-218.917503,0.00018284,2]
[378566469,1754913138516,-799.520841,0.00018284,2]
[378566470,1754913138526,-799.520841,0.00018284,2]
[378566471,1754913138536,-240.543454,0.00018284,2]
[378566472,1754913138546,-240.543454,0.00018284,2]
[378566473,1754913138555,-581.201779,0.00018284,2]
[378566474,1754913138565,-581.201779,0.00018284,2]
[378566475,1754913138575,-151.0,0.00018284,2]
[378566476,1754913138585,-150.0,0.00018315,2]
[378566477,1754913138595,-2000.0,0.00018316,2]
[378566478,1754913138606,-309.194123,0.0001835,2]
[378566479,1754913138615,-309.194123,0.0001835,2]
[378566480,1754913138625,-264.870503,0.0001835,2]
[378566481,1754913138635,-264.870503,0.0001835,2]
[378566482,1754913138644,-951.220244,0.0001835,2]
[378566483,1754913138655,-951.220244,0.0001835,2]
[378566484,1754913138665,-151.0,0.0001835,2]
[378566485,1754913138674,-151.0,0.0001835,2]
[378566486,1754913138686,-349.849984,0.0001835,2]
[378566487,1754913138696,-349.849984,0.0001835,2]
[378566488,1754913138706,-151.0,0.0001835,2]
[378566489,1754913138716,-151.0,0.0001835,2]
[378566490,1754913138725,-154.04177,0.0001835,2]
[378566491,1754913138736,-154.04177,0.0001835,2]
[378566492,1754913138745,-223.997593,0.0001835,2]
[378566493,1754913138755,-223.997595,0.0001835,2]
[378566494,1754913138765,-151.0,0.0001835,2]
[378566495,1754913138775,-151.0,0.0001835,2]
[378566496,1754913138785,-309.853147,0.0001835,2]
[378566497,1754913138795,-309.853156,0.0001835,2]
[378566498,1754913138805,-516.634903,0.0001835,2]
[378566499,1754913138814,-516.634903,0.0001835,2]
[378566500,1754913138824,-1271.592475,0.0001835,2]
[378566501,1754913138834,-1271.592484,0.0001835,2]
[378566502,1754913138844,-150.0,0.00018352,2]
[378566503,1754913138854,-15881.67,0.00018356,2]
[378566504,1754913138864,-150.0,0.00018366,2]
[378566505,1754913138874,-150.0,0.00018378,2]
[378566506,1754913138883,-201.459124,0.00018381,2]
[378566507,1754913138893,-201.459124,0.00018381,2]
[378566508,1754913138903,-644.935252,0.00018381,2]
[378566509,1754913138914,-644.935252,0.00018381,2]
[378566510,1754913138925,-218.917503,0.00018381,2]
[378566511,1754913138935,-218.917503,0.00018381,2]
[378566512,1754913138946,-799.520841,0.00018381,2]
[378566513,1754913138956,-799.520841,0.00018381,2]
[378566514,1754913138966,-240.543454,0.00018381,2]
[378566515,1754913138976,-240.543454,0.00018381,2]
[378566516,1754913138985,-581.201779,0.00018381,2]
[378566517,1754913138995,-581.201779,0.00018381,2]
[378566518,1754913139004,-151.0,0.00018381,2]
[378566519,1754913139014,-525.43149429,0.00018425,2]
[378566520,1754913139024,-155.03731433,0.00018441,2]
[378566521,1754913139033,-1807.8932486,0.00018443,2]
[378566522,1754913139043,-331.44995402,0.00018444,2]
[378566523,1754913139053,-150.0,0.0001846,2]
[378566524,1754913139063,-504.36897901,0.0001846,2]
[378566525,1754913139073,-126649.863372,0.00018461,2]
[378566526,1754913139085,-112530.0018247,0.00018462,2]
[378566527,1754913139095,-306.5079793,0.00018469,2]
[378566528,1754913139106,-331.0,0.0001847,2]
[378566529,1754913139116,-3367.0,0.00018478,2]
[378566530,1754913139126,-157.136,0.00018478,2]
[378566531,1754913139137,-820.0,0.00018478,2]
[378566532,1754913139147,-957.0,0.00018478,2]
[378566533,1754913139157,-1253.0,0.00018478,2]
[378566534,1754913139167,-3301.683,0.00018478,2]
[378566535,1754913139178,-2027.0,0.00018478,2]
[378566536,1754913139188,-598.0,0.00018478,2]
[378566537,1754913139198,-1187.479,0.00018478,2]
[378566538,1754913139208,-903.806,0.00018478,2]
[378566539,1754913139218,-565.0,0.00018478,2]
[378566540,1754913139228,-1044.0,0.00018478,2]
[378566541,1754913139239,-1654.0,0.00018478,2]
[378566542,1754913139249,-21461.0,0.00018478,2]
[378566543,1754913139263,-6082.0,0.00018478,2]
[378566544,1754913139273,-4145.0,0.00018478,2]
[378566545,1754913139283,-716.0,0.00018478,2]
[378566546,1754913139293,-218.917503,0.00018481,2]
[378566547,1754913139305,-218.917506,0.00018481,2]
[378566548,1754913139315,-799.520841,0.00018481,2]
[378566549,1754913139325,-799.52085,0.00018481,2]
[378566550,1754913139335,-240.543454,0.00018481,2]
[378566551,1754913139346,-240.54346,0.00018481,2]
[378566552,1754913139356,-581.201779,0.00018481,2]
[378566553,1754913139365,-581.201785,0.00018481,2]
[378566554,1754913139374,-259.678998,0.00018481,2]
[378566555,1754913139384,-321.73,0.00018483,2]
[378566556,1754913139394,-201.459124,0.00018488,2]
[378566557,1754913139404,-201.459124,0.00018488,2]
[378566558,1754913139415,-644.935252,0.00018488,2]
[378566559,1754913139424,-644.935252,0.00018488,2]
[378566560,1754913139434,-309.194123,0.00018488,2]
[378566561,1754913139443,-309.194123,0.00018488,2]
[378566562,1754913139453,-264.870503,0.00018488,2]
[378566563,1754913139462,-264.870503,0.00018488,2]
[378566564,1754913139472,-951.220244,0.00018488,2]
[378566565,1754913139481,-951.220244,0.00018488,2]
[378566566,1754913139491,-151.0,0.00018488,2]
[378566567,1754913139502,-151.0,0.00018488,2]
[378566568,1754913139512,-349.849984,0.00018488,2]
[378566569,1754913139522,-349.849984,0.00018488,2]
[378566570,1754913139531,-151.0,0.00018488,2]
[378566571,1754913139540,-154.04177,0.00018488,2]
[378566572,1754913139551,-154.04177,0.00018488,2]
[378566573,1754913139562,-151.0,0.00018488,2]
[378566574,1754913139573,-151.0,0.00018488,2]
[378566575,1754913139583,-516.634903,0.00018488,2]
[378566576,1754913139592,-516.634903,0.00018488,2]
[378566577,1754913139602,-162.89464287,0.00018504,2]
[378566578,1754913139612,-411.4133562,0.00018504,2]
[378566579,1754913139622,-2000.0,0.00018516,2]
[378566580,1754913139632,-2000.0,0.00018516,2]
[378566581,1754913139642,-2000.0,0.00018516,2]
[378566582,1754913139652,-2000.0,0.00018516,2]
[378566583,1754913139663,-150.00000001,0.00018521,2]
[378566584,1754913139674,-162.39045332,0.00018521,2]
[378566585,1754913139684,-172.35050473,0.00018521,2]
[378566586,1754913139694,-253.74111878,0.00018521,2]
[378566587,1754913139703,-180.11182096,0.00018521,2]
[378566588,1754913139713,-168.79725398,0.00018521,2]
[378566589,1754913139723,-150.0,0.00018521,2]
[378566590,1754913139733,-150.0,0.00018521,2]
[378566591,1754913139744,-179.76089139,0.00018521,2]
[378566592,1754913139754,-271.15840938,0.00018521,2]
[378566593,1754913139764,-231.78723017,0.00018521,2]
[378566594,1754913139774,-297.45812734,0.00018521,2]
[378566595,1754913139784,-153.13361536,0.00018521,2]
[378566596,1754913139794,-290.93185462,0.00018521,2]
[378566597,1754913139804,-150.00000001,0.00018521,2]
[378566598,1754913139814,-151.0797443,0.00018521,2]
[378566599,1754913139824,-150.0,0.00018521,2]
[378566600,1754913139834,-299.99,0.00018533,4]
[378566601,1754913139843,-267.95,0.00018533,2]
[378566602,1754913139852,-293.27,0.00018533,2]
[378566603,1754913139862,-9999.99,0.00018533,2]
[378566604,1754913139871,-150.99,0.00018533,2]
[378566605,1754913139881,-400.0,0.0001854,2]
[378566606,1754913139891,-400.0,0.0001854,2]
[378566607,1754913139900,-914.13,0.0001854,2]
[378566608,1754913139911,-1959.51,0.0001854,2]
[378566609,1754913139921,-563.57,0.0001854,2]
[378566610,1754913139930,-1025.43,0.0001854,2]
[378566611,1754913139939,-400.0,0.00018541,2]
[378566612,1754913139948,-486.72,0.00018541,2]
[378566613,1754913139957,-400.0,0.00018541,2]
[378566614,1754913139967,-400.0,0.00018541,2]
[378566615,1754913139976,-400.0,0.00018541,2]
[378566616,1754913139986,-400.0,0.00018541,2]
[378566617,1754913139996,-885.25,0.00018541,2]
[378566618,1754913140006,-400.0,0.00018541,2]
[378566619,1754913140015,-782.6,0.00018541,2]
[378566620,1754913140025,-400.0,0.00018541,2]
[378566621,1754913140035,-400.0,0.00018541,2]
[378566622,1754913140044,-539.02,0.00018541,2]
[378566623,1754913140054,-516.56,0.00018541,2]
[378566624,1754913140063,-767.57,0.00018541,2]
[378566625,1754913140073,-682.78,0.00018541,2]
[378566626,1754913140082,-400.0,0.00018541,2]
[378566627,1754913140091,-1077.9,0.00018541,2]
[378566628,1754913140101,-1847.71,0.00018541,2]
[378566629,1754913140111,-629.18,0.00018541,2]
[378566630,1754913140120,-1572.94,0.00018541,2]
[378566631,1754913140129,-400.0,0.00018541,2]
[378566632,1754913140139,-717.66,0.00018541,2]
[378566633,1754913140149,-400.0,0.00018541,2]
[378566634,1754913140160,-486.47,0.00018541,2]
[378566635,1754913140170,-1360.56,0.00018541,2]
[378566636,1754913140180,-862.74,0.00018541,2]
[378566637,1754913140190,-1924.52,0.00018541,2]
[378566638,1754913140200,-400.0,0.00018541,2]
[378566639,1754913140210,-2103.16,0.00018541,2]
[378566640,1754913140220,-400.0,0.00018541,2]
[378566641,1754913140230,-650.99,0.00018541,2]
[378566642,1754913140241,-450.63,0.00018541,2]
[378566643,1754913140252,-551.93,0.00018541,2]
[378566644,1754913140264,-535.63,0.00018541,2]
[378566645,1754913140274,-400.0,0.00018541,2]
[378566646,1754913140283,-1110.75,0.00018541,2]
[378566647,1754913140294,-616.85,0.00018541,2]
[378566648,1754913140304,-3665.68,0.00018541,2]
[378566649,1754913140314,-538.73,0.00018541,2]
[378566650,1754913140324,-400.0,0.00018541,2]
[378566651,1754913140334,-1238.34,0.00018541,2]
[378566652,1754913140344,-400.0,0.00018541,2]
[378566653,1754913140354,-400.0,0.00018541,2]
[378566654,1754913140364,-1103.47,0.00018541,2]
[378566655,1754913140374,-1832.23,0.00018541,2]
[378566656,1754913140383,-400.0,0.00018541,2]
[378566657,1754913140393,-667.01,0.00018541,2]
[378566658,1754913140406,-400.0,0.00018541,2]
[378566659,1754913140417,-3599.22,0.00018541,2]
[378566660,1754913140427,-400.0,0.00018541,2]
[378566661,1754913140436,-3965.48,0.00018541,2]
[378566662,1754913140447,-400.0,0.00018541,2]
[378566663,1754913140457,-763.33,0.00018541,2]
[378566664,1754913140465,-513.17,0.00018541,2]
[378566665,1754913140475,-2315.63,0.00018541,2]
[378566666,1754913140485,-1032.43,0.00018541,2]
[378566667,1754913140496,-2928.22,0.00018541,2]
[378566668,1754913140506,-625.35,0.00018541,2]
[378566669,1754913140516,-400.0,0.00018541,2]
[378566670,1754913140526,-1951.78,0.00018541,2]
[378566671,1754913140535,-400.0,0.00018541,2]
[378566672,1754913140545,-1219.07,0.00018541,2]
[378566673,1754913140555,-400.0,0.00018541,2]
[378566674,1754913140564,-379.03760011,0.00018541,2]
[378566675,1754913140574,-1303.97,0.00018541,2]
[378566676,1754913140733,-1039.56,0.00018541,2]
[378566677,1754913140743,-602.38,0.00018541,2]
[378566678,1754913140752,-617.95,0.00018541,2]
[378566679,1754913140761,-401.58,0.00018541,2]
[378566680,1754913140770,-5755.72,0.00018541,2]
[378566681,1754913140781,-783.72,0.00018541,2]
[378566682,1754913140791,-400.0,0.00018541,2]
[378566683,1754913140800,-400.0,0.00018541,2]
[378566684,1754913140810,-1955.89,0.00018541,2]
[378566685,1754913140820,-479.01,0.00018541,2]
[378566686,1754913140830,-1475.85,0.00018541,2]
[378566687,1754913140839,-1996.46,0.00018541,2]
[378566688,1754913140850,-447.09,0.00018541,2]
[378566689,1754913140860,-578.81,0.00018541,2]
[378566690,1754913140869,-228.68667259,0.00018541,2]
[378566691,1754913140878,-791.98,0.00018541,2]
[378566692,1754913140887,-2675.98,0.00018541,2]
[378566693,1754913140896,-497.831891,0.00018541,2]
[378566694,1754913140906,-1152.081676,0.00018541,2]
[378566695,1754913140916,-400.0,0.00018541,2]
[378566696,1754913140925,-400.0,0.00018541,2]
[378566697,1754913140934,-470.78,0.00018541,2]
[378566698,1754913140944,-696.81,0.00018541,2]
[378566699,1754913140954,-1016.93,0.00018541,2]
[378566700,1754913140964,-400.0,0.00018541,2]
[378566701,1754913140974,-6727.5,0.00018541,2]
[378566702,1754913140984,-610.99,0.00018541,2]
[378566703,1754913140993,-529.01,0.00018541,2]
[378566704,1754913141003,-400.0,0.00018541,2]
[378566705,1754913141012,-5623.33,0.00018541,2]
[378566706,1754913141022,-1089.579135,0.00018541,2]
[378566707,1754913141032,-546.53,0.00018541,2]
[378566708,1754913141041,-400.0,0.00018541,2]
[378566709,1754913141051,-400.0,0.00018541,2]
[378566710,1754913141060,-400.0,0.00018541,2]
[378566711,1754913141070,-400.0,0.00018541,2]
[378566712,1754913141080,-790.77,0.00018541,2]
[378566713,1754913141089,-151.129737,0.00018541,2]
[378566714,1754913141099,-2711.02,0.00018541,2]
[378566715,1754913141109,-895.23,0.00018541,2]
[378566716,1754913141119,-487.57,0.00018541,2]
[378566717,1754913141128,-1287.58,0.00018541,2]
[378566718,1754913141138,-532.2,0.00018541,2]
[378566719,1754913141147,-709.95,0.00018541,2]
[378566720,1754913141158,-1341.71,0.00018541,2]
[378566721,1754913141167,-400.0,0.00018542,2]
[378566722,1754913141177,-411.4,0.00018542,2]
[378566723,1754913141186,-1472.06,0.00018542,2]
[378566724,1754913141196,-604.88,0.00018542,2]
[378566725,1754913141205,-505.49,0.00018542,2]
[378566726,1754913141215,-879.62,0.00018542,2]
[378566727,1754913141224,-400.0,0.00018542,2]
[378566728,1754913141233,-829.69,0.00018542,2]
[378566729,1754913141243,-515.07,0.00018542,2]
[378566730,1754913141252,-659.98,0.00018542,2]
[378566731,1754913141264,-400.0,0.00018542,2]
[378566732,1754913141274,-771.45,0.00018542,2]
[378566733,1754913141283,-400.0,0.00018542,2]
[378566734,1754913141293,-506.28,0.00018542,2]
[378566735,1754913141302,-743.21,0.00018542,2]
[378566736,1754913141312,-942.45,0.00018542,2]
[378566737,1754913141321,-540.15,0.00018542,2]
[378566738,1754913141330,-463.46330516,0.00018542,2]
[378566739,1754913141339,-400.0,0.00018542,2]
[378566740,1754913141348,-523.63,0.00018542,2]
[378566741,1754913141357,-400.0,0.00018542,2]
[378566742,1754913141367,-408.21,0.00018542,2]
[378566743,1754913141376,-599.86,0.00018542,2]
[378566744,1754913141385,-893.56,0.00018542,2]
[378566745,1754913141395,-400.0,0.00018542,2]
[378566746,1754913141404,-400.0,0.00018542,2]
[378566747,1754913141416,-400.0,0.00018542,2]
[378566748,1754913141426,-759.92,0.00018542,2]
[378566749,1754913141435,-464.83,0.00018542,2]
[378566750,1754913141444,-400.0,0.00018542,2]
[378566751,1754913141454,-400.0,0.00018542,2]
[378566752,1754913141463,-400.0,0.00018542,2]
[378566753,1754913141472,-862.15,0.00018542,2]
[378566754,1754913141482,-400.0,0.00018542,2]
[378566755,1754913141491,-817.78,0.00018542,2]
[378566756,1754913141501,-400.0,0.00018542,2]
[378566757,1754913141511,-217.60581578,0.00018542,2]
[378566758,1754913141520,-400.0,0.00018542,2]
[378566759,1754913141530,-445.95,0.00018542,2]
[378566760,1754913141540,-479.75,0.00018542,2]
[378566761,1754913141549,-681.68,0.00018542,2]
[378566762,1754913141559,-419.27,0.00018542,2]
[378566763,1754913141571,-400.0,0.00018542,2]
[378566764,1754913141580,-400.0,0.00018542,2]
[378566765,1754913141590,-1171.58,0.00018542,2]
[378566766,1754913141600,-400.0,0.00018542,2]
[378566767,1754913141609,-652.15,0.00018542,2]
[378566768,1754913141620,-400.0,0.00018542,2]
[378566769,1754913141629,-400.0,0.00018542,2]
[378566770,1754913141638,-895.92,0.00018542,2]
[378566771,1754913141648,-865.05,0.00018542,2]
[378566772,1754913141659,-620.65,0.00018542,2]
[378566773,1754913141668,-401.39,0.00018542,2]
[378566774,1754913141678,-475.4,0.00018542,2]
[378566775,1754913141688,-1011.29,0.00018542,2]
[378566776,1754913141698,-400.0,0.00018542,2]
[378566777,1754913141707,-444.01,0.00018542,2]
[378566778,1754913141717,-1023.09,0.00018542,2]
[378566779,1754913141726,-695.97,0.00018542,2]
[378566780,1754913141736,-1133.88,0.00018542,2]
[378566781,1754913141745,-694.53,0.00018542,2]
[378566782,1754913141754,-400.0,0.00018542,2]
[378566783,1754913141763,-758.91,0.00018542,2]
[378566784,1754913141771,-422.25,0.00018542,2]
[378566785,1754913141780,-890.17,0.00018542,2]
[378566786,1754913141790,-860.13,0.00018542,2]
[378566787,1754913141799,-239.7997445,0.00018542,2]
[378566788,1754913141807,-470.87,0.00018542,2]
[378566789,1754913141817,-1394.05,0.00018542,2]
[378566790,1754913141827,-400.0,0.00018542,2]
[378566791,1754913141835,-400.0,0.00018542,2]
[378566792,1754913141844,-910.03,0.00018542,2]
[378566793,1754913141854,-962.55,0.00018542,2]
[378566794,1754913141863,-1368.56,0.00018542,2]
[378566795,1754913141873,-743.88,0.00018542,2]
[378566796,1754913141882,-1031.13,0.00018542,2]
[378566797,1754913141892,-409.76,0.00018542,2]
[378566798,1754913141901,-540.06,0.00018542,2]
[378566799,1754913141911,-845.56,0.00018542,2]
[378566800,1754913141920,-792.64,0.00018542,2]
[378566801,1754913141930,-1762.08,0.00018542,2]
[378566802,1754913141939,-593.38,0.00018542,2]
[378566803,1754913141948,-597.49,0.00018542,2]
[378566804,1754913141957,-506.13,0.00018542,2]
[378566805,1754913141966,-1629.14,0.00018542,2]
[378566806,1754913141976,-993.68,0.00018542,2]
[378566807,1754913141985,-400.0,0.00018542,2]
[378566808,1754913141995,-400.0,0.00018542,2]
[378566809,1754913142004,-513.33,0.00018542,2]
[378566810,1754913142013,-400.0,0.00018542,2]
[378566811,1754913142023,-1141.73,0.00018542,2]
[378566812,1754913142032,-400.0,0.00018542,2]
[378566813,1754913142041,-670.5,0.00018542,2]
[378566814,1754913142050,-423.65,0.00018542,2]
[378566815,1754913142059,-892.5,0.00018542,2]
[378566816,1754913142068,-400.0,0.00018542,2]
[378566817,1754913142078,-168.62955131,0.00018542,2]
[378566818,1754913142087,-395.1471236,0.00018542,2]
[378566819,1754913142096,-908.52,0.00018542,2]
[378566820,1754913142106,-965.86,0.00018542,2]
[378566821,1754913142116,-670.06,0.00018542,2]
[378566822,1754913142125,-400.0,0.00018542,2]
[378566823,1754913142135,-874.48,0.00018542,2]
[378566824,1754913142144,-979.39,0.00018542,2]
[378566825,1754913142154,-1333.91,0.00018542,2]
[378566826,1754913142164,-905.1,0.00018542,2]
[378566827,1754913142174,-400.0,0.00018542,2]
[378566828,1754913142184,-894.54,0.00018542,2]
[378566829,1754913142193,-676.94,0.00018542,2]
[378566830,1754913142203,-400.0,0.00018542,2]
[378566831,1754913142212,-400.0,0.00018542,2]
[378566832,1754913142222,-400.0,0.00018542,2]
[378566833,1754913142232,-542.48,0.00018542,2]
[378566834,1754913142241,-508.79,0.00018542,2]
[378566835,1754913142250,-999.87,0.00018542,2]
[378566836,1754913142261,-3049.11,0.00018542,2]
[378566837,1754913142270,-1358.48,0.00018542,2]
[378566838,1754913142279,-400.0,0.00018542,2]
[378566839,1754913142290,-588.01,0.00018542,2]
[378566840,1754913142301,-400.0,0.00018542,2]
[378566841,1754913142310,-917.7,0.00018542,2]
[378566842,1754913142320,-575.14,0.00018542,2]
[378566843,1754913142329,-534.7,0.00018542,2]
[378566844,1754913142339,-400.0,0.00018542,2]
[378566845,1754913142349,-1119.85,0.00018542,2]
[378566846,1754913142358,-400.0,0.00018542,2]
[378566847,1754913142367,-400.0,0.00018542,2]
[378566848,1754913142376,-1484.62,0.00018542,2]
[378566849,1754913142386,-1423.31,0.00018542,2]
[378566850,1754913142395,-1105.92,0.00018542,2]
[378566851,1754913142404,-778.81,0.00018542,2]
[378566852,1754913142415,-400.0,0.00018542,2]
[378566853,1754913142424,-400.0,0.00018542,2]
[378566854,1754913142434,-513.21,0.00018542,2]
[378566855,1754913142443,-1184.91,0.00018542,2]
[378566856,1754913142452,-446.8,0.00018542,2]
[378566857,1754913142462,-400.0,0.00018542,2]
[378566858,1754913142471,-2031.02,0.00018542,2]
[378566859,1754913142480,-400.0,0.00018542,2]
[378566860,1754913142489,-569.54,0.00018542,2]
[378566861,1754913142497,-1438.07,0.00018542,2]
[378566862,1754913142505,-1835.91,0.00018542,2]
[378566863,1754913142514,-1664.57,0.00018542,2]
[378566864,1754913142523,-474.7,0.00018542,2]
[378566865,1754913142533,-1140.5,0.00018542,2]
[378566866,1754913142542,-420.23,0.00018542,2]
[378566867,1754913142551,-558.06,0.00018542,2]
[378566868,1754913142561,-400.0,0.00018542,2]
[378566869,1754913142570,-912.23,0.00018542,2]
[378566870,1754913142579,-535.61,0.00018542,2]
[378566871,1754913142588,-3776.9,0.00018542,2]
[378566872,1754913142597,-1600.74,0.00018542,2]
[378566873,1754913142606,-400.0,0.00018542,2]
[378566874,1754913142615,-400.0,0.00018542,2]
[378566875,1754913142624,-1187.21,0.00018542,2]
[378566876,1754913142633,-400.0,0.00018542,2]
[378566877,1754913142642,-1174.64,0.00018542,2]
[378566878,1754913142651,-1143.3,0.00018542,2]
[378566879,1754913142662,-3766.4,0.00018542,2]
[378566880,1754913142671,-405.71,0.00018542,2]
[378566881,1754913142679,-1750.0,0.00018542,2]
[378566882,1754913142688,-400.0,0.00018542,2]
[378566883,1754913142697,-400.0,0.00018542,2]
[378566884,1754913142706,-400.0,0.00018542,2]
[378566885,1754913142715,-1439.21,0.00018542,2]
[378566886,1754913142725,-999.19,0.00018542,2]
[378566887,1754913142734,-400.0,0.00018542,2]
[378566888,1754913142743,-500.0,0.00018542,2]
[378566889,1754913142752,-400.0,0.00018542,2]
[378566890,1754913142761,-400.0,0.00018542,2]
[378566891,1754913142770,-236.19400908,0.00018542,2]
[378566892,1754913142780,-825.23,0.00018542,2]
[378566893,1754913142789,-400.0,0.00018542,2]
[378566894,1754913142798,-400.0,0.00018542,2]
[378566895,1754913142807,-2291.54,0.00018542,2]
[378566896,1754913142817,-893.83,0.00018542,2]
[378566897,1754913142826,-579.98,0.00018542,2]
[378566898,1754913142836,-639.13,0.00018542,2]
[378566899,1754913142846,-1169.96,0.00018542,2]
[378566900,1754913142855,-629.51,0.00018542,2]
[378566901,1754913142864,-1947.0,0.00018542,2]
[378566902,1754913142872,-1432.85,0.00018542,2]
[378566903,1754913142881,-437.63,0.00018542,2]
[378566904,1754913142891,-1369.48,0.00018542,2]
[378566905,1754913142900,-1311.13,0.00018542,2]
[378566906,1754913142910,-3083.43,0.00018542,2]
[378566907,1754913142919,-630.75,0.00018542,2]
[378566908,1754913142929,-493.25,0.00018542,2]
[378566909,1754913142938,-1219.17,0.00018542,2]
[378566910,1754913142947,-499.66,0.00018542,2]
[378566911,1754913142959,-521.46,0.00018542,2]
[378566912,1754913142968,-875.72,0.00018542,2]
[378566913,1754913142978,-2612.12,0.00018542,2]
[378566914,1754913142987,-542.37,0.00018542,2]
[378566915,1754913142997,-717.7,0.00018542,2]
[378566916,1754913143007,-4501.74,0.00018542,2]
[378566917,1754913143017,-433.74,0.00018542,2]
[378566918,1754913143026,-1112.57,0.00018542,2]
[378566919,1754913143036,-400.0,0.00018542,2]
[378566920,1754913143046,-668.41,0.00018542,2]
[378566921,1754913143056,-6625.36,0.00018542,2]
[378566922,1754913143066,-464.98,0.00018542,2]
[378566923,1754913143076,-400.0,0.00018542,2]
[378566924,1754913143086,-1234.57,0.00018542,2]
[378566925,1754913143096,-3376.95,0.00018542,2]
[378566926,1754913143106,-464.79,0.00018542,2]
[378566927,1754913143116,-672.57,0.00018542,2]
[378566928,1754913143126,-150.0,0.00018542,2]
[378566929,1754913143136,-400.0,0.00018542,2]
[378566930,1754913143145,-4406.48,0.00018542,2]
[378566931,1754913143155,-1313.89,0.00018542,2]
[378566932,1754913143165,-842.59,0.00018542,2]
[378566933,1754913143175,-2757.93,0.00018542,2]
[378566934,1754913143185,-503.99,0.00018542,2]
[378566935,1754913143195,-400.0,0.00018542,2]
[378566936,1754913143205,-400.0,0.00018542,2]
[378566937,1754913143214,-600.0,0.00018542,2]
[378566938,1754913143223,-478.37,0.00018543,2]
[378566939,1754913143233,-332.88445014,0.00018543,2]
[378566940,1754913143242,-400.0,0.00018543,2]
[378566941,1754913143252,-1026.77,0.00018543,2]
[378566942,1754913143264,-527.98,0.00018543,2]
[378566943,1754913143274,-400.0,0.00018543,2]